[Event "47th GRE-chT 2019"]
[Site "Patra"]
[Date "2019.07.03"]
[Round "2.25"]
[White "Maisuradze, Nino"]
[Black "Salahidou, Reveka"]
[Result "1-0"]
[ECO "D48"]
[WhiteElo "2197"]
[BlackElo "1971"]
[Annotator "NA"]
[PlyCount "77"]
[EventDate "2019.07.02"]
[EventCountry "GRE"]
[SourceTitle "playchess.com"]
[Source "ChessBase"]
[SourceQuality "1"]
[TimeControl "5400+30"]

1. d4 {[%emt 0:00:00]} d5 {[%emt 0:00:00]} 2. c4 {[%emt 0:00:00]} e6 {[%emt 0:00:00]} 3. Nc3 {[%emt 0:00:00]} Nf6 {[%emt 0:00:00]} 4. Nf3 {[%emt 0:00:22]} dxc4 {[%emt 0:00:32]} 5. e3 {[%emt 0:00:55]} c5 {[%emt 0:01:21]} 6. Bxc4 {[%emt 0:00:11]} Be7 {[%emt 0:02:54]} 7. O-O {[%emt 0:00:18]} O-O {[%emt 0:02:42]} 8. Qe2 {[%emt 0:01:06]} a6 {[%emt 0:05:03]} 9. Rd1 {[%emt 0:02:33]} b5 {[%emt 0:10:54]} 10. Bd3 {[%emt 0:05:53]} Qc7 {[%emt 0:31:53]} 11. a3 $11 {[%emt 0:16:21]} Bb7 {[%emt 0:02:31]} 12. e4 {[%emt 0:03:15]} cxd4 {[%emt 0:12:18]} 13. Nxd4 {[%emt 0:00:17]} Nbd7 {[%emt 0:00:50]} 14. Bg5 {[%emt 0:06:04]} Nc5 {[%emt 0:03:27]} 15. Bc2 {[%emt 0:02:08]} h6 {[%emt 0:01:20]} 16. Bd2 {[%emt 0:33:25]} Bd6 {[%emt 0:04:28]} 17. Nf3 {[%emt 0:04:32]} Ng4 {[%emt 0:02:13]} 18. h3 {[%emt 0:00:55]} Ne5 {[%emt 0:00:12]} 19. Nxe5 {[%emt 0:00:52]} Bxe5 {[%emt 0:00:05]} 20. Rac1 {[%emt 0:01:19]} Rac8 {[%emt 0:03:49]} 21. Qg4 {[%emt 0:05:07]} Kh8 {[%emt 0:02:10]} 22. f4 {[%emt 0:02:12]} Bd4+ {[%emt 0:02:53]} 23. Kh1 {[%emt 0:00:18]} Qc6 {[%emt 0:01:27]} 24. e5 {[%emt 0:02:39]} Bxc3 {[%emt 0:03:50]} 25. Bxc3 {[%emt 0:00:22]} Ne4 {[%emt 0:01:45]} 26. Bxe4 {[%emt 0:05:11]} Qxe4 {[%emt 0:00:06]} 27. Rd7 {[%emt 0:00:51]} Bd5 {[%emt 0:02:38]} 28. Re1 {[%emt 0:00:19]} Qg6 {[%emt 0:01:44]} 29. Qe2 {[%emt 0:06:26]} Rc4 {[%emt 0:00:22]} 30. Rf1 {[%emt 0:00:27]} Re4 {[%emt 0:00:21]} 31. Qd2 {[%emt 0:00:17]} Rc4 {[%emt 0:01:03]} 32. Kh2 {[%emt 0:00:28]} Rfc8 {[%emt 0:00:13]} 33. f5 {[%emt 0:00:16]} Qh5 {[%emt 0:00:36]} 34. f6 {[%emt 0:01:04]} Rg4 {[%emt 0:00:43]} 35. Rxd5 {[%emt 0:00:32]} exd5 {[%emt 0:00:14]} 36. fxg7+ {[%emt 0:00:12]} Kg8 {[%emt 0:00:23]} 37. Qxd5 {[%emt 0:00:50]} Rg6 {[%emt 0:00:53]} 38. Qxf7+ {[%emt 0:00:18]} Kh7 {[%emt 0:00:04]} 39. g8=Q# {[%emt 0:00:11]} 1-0

[Event "47th GRE-chT 2019"]
[Site "Patra"]
[Date "2019.07.03"]
[Round "2.26"]
[White "Stratigi, Evangelia"]
[Black "Houhouli, Hristina"]
[Result "1/2-1/2"]
[ECO "B30"]
[WhiteElo "1624"]
[BlackElo "1428"]
[Annotator "NA"]
[PlyCount "102"]
[EventDate "2019.07.02"]
[EventCountry "GRE"]
[SourceTitle "playchess.com"]
[Source "ChessBase"]
[SourceQuality "1"]
[TimeControl "5400+30"]

1. e4 {[%emt 0:00:00]} c5 {[%emt 0:00:00]} 2. Nf3 {[%emt 0:00:00]} Nc6 {[%emt 0:00:00]} 3. Bc4 {[%emt 0:00:47]} e6 {[%emt 0:00:35]} 4. O-O {[%emt 0:04:53]} Nge7 {[%emt 0:07:44]} 5. c3 {[%emt 0:05:22]} d5 {[%emt 0:01:26]} 6. exd5 {[%emt 0:01:49]} Nxd5 {[%emt 0:06:21]} 7. d4 {[%emt 0:07:36]} cxd4 {[%emt 0:00:44]} 8. Nxd4 {[%emt 0:03:55]} Ne5 {[%emt 0:05:56]} 9. Bb5+ {[%emt 0:03:12]} Bd7 {[%emt 0:08:51]} 10. Qe2 {[%emt 0:11:23]} Ng6 {[%emt 0:07:56]} 11. Rd1 {[%emt 0:14:44]} Bxb5 {[%emt 0:06:27]} 12. Nxb5 {[%emt 0:04:25]} Qb6 {[%emt 0:05:34]} 13. Rxd5 {[%emt 0:03:06]} Bc5 {[%emt 0:06:10]} 14. Rd1 {[%emt 0:03:41]} Bxf2+ {[%emt 0:00:17]} 15. Qxf2 {[%emt 0:00:14]} Qxb5 {[%emt 0:01:02]} 16. Na3 {[%emt 0:02:56]} Qc6 {[%emt 0:01:26]} 17. Be3 {[%emt 0:02:32]} b6 {[%emt 0:03:38]} 18. Rd4 {[%emt 0:01:54]} O-O {[%emt 0:00:51]} 19. Rad1 {[%emt 0:02:29]} e5 {[%emt 0:04:34]} 20. Rd6 {[%emt 0:03:44]} Qa4 {[%emt 0:05:20]} 21. Qf5 {[%emt 0:06:36]} Rae8 {[%emt 0:04:43]} 22. Rd7 {[%emt 0:03:01]} Nh4 {[%emt 0:04:43]} 23. Qf2 {[%emt 0:06:14]} Re6 {[%emt 0:05:14]} 24. c4 {[%emt 0:00:57]} Ng6 {[%emt 0:01:13]} 25. Qc2 {[%emt 0:02:52]} Qc6 {[%emt 0:04:04]} 26. Nb5 {[%emt 0:02:47]} a6 {[%emt 0:01:56]} 27. R7d6 {[%emt 0:00:34]} Rxd6 {[%emt 0:00:54]} 28. Rxd6 {[%emt 0:00:28]} Qc8 {[%emt 0:01:12]} 29. Na3 {[%emt 0:01:00]} f5 {[%emt 0:01:04]} 30. Qd2 {[%emt 0:00:20]} f4 {[%emt 0:01:28]} 31. Qd5+ {[%emt 0:00:18]} Kh8 {[%emt 0:00:49]} 32. Bxb6 {[%emt 0:01:15]} Qf5 {[%emt 0:01:04]} 33. Rd8 {[%emt 0:00:40]} h6 {[%emt 0:00:31]} 34. Rxf8+ {[%emt 0:00:28]} Qxf8 {[%emt 0:00:45]} 35. Qe4 {[%emt 0:00:23]} Qe8 {[%emt 0:00:59]} 36. c5 {[%emt 0:00:51]} Qe6 {[%emt 0:01:05]} 37. Nc4 {[%emt 0:00:33]} Qg4 {[%emt 0:01:00]} 38. Qf3 {[%emt 0:00:15]} Qf5 {[%emt 0:00:32]} 39. Nd6 {[%emt 0:00:15]} Qb1+ {[%emt 0:00:00]} 40. Kf2 {[%emt 0:00:00]} Qxb2+ {[%emt 0:00:00]} 41. Qe2 {[%emt 0:00:00]} Qd4+ {[%emt 0:00:00]} 42. Kf1 {[%emt 0:00:00]} Qa1+ {[%emt 0:00:00]} 43. Qe1 {[%emt 0:00:00]} Qxa2 {[%emt 0:00:00]} 44. c6 {[%emt 0:00:00]} f3 {[%emt 0:00:00]} 45. gxf3 {[%emt 0:00:00]} Nf4 {[%emt 0:00:00]} 46. Bf2 {[%emt 0:00:00]} Qe6 {[%emt 0:00:00]} 47. Nf7+ {[%emt 0:00:00]} Qxf7 {[%emt 0:00:00]} 48. Qxe5 {[%emt 0:00:00]} Qc4+ {[%emt 0:00:00]} 49. Kg1 {[%emt 0:04:19]} Nd5 {[%emt 0:03:15]} 50. Qe8+ {[%emt 4:45:16]} Kh7 {[%emt 0:00:02]} 51. Qe4+ Qxe4 {[%emt 0:00:03]} 1/2-1/2

[Event "47th GRE-chT 2019"]
[Site "Patra"]
[Date "2019.07.03"]
[Round "2.27"]
[White "Batsi, Varvara"]
[Black "Kaliontzaki, Argyro Evanthia"]
[Result "0-1"]
[ECO "E14"]
[WhiteElo "1214"]
[BlackElo "1324"]
[Annotator "NA"]
[PlyCount "54"]
[EventDate "2019.07.02"]
[EventCountry "GRE"]
[SourceTitle "playchess.com"]
[Source "ChessBase"]
[SourceQuality "1"]
[TimeControl "5400+30"]

1. d4 {[%emt 0:00:00]} Nf6 {[%emt 0:00:00]} 2. Nf3 {[%emt 0:00:00]} e6 {[%emt 0:00:00]} 3. e3 {[%emt 0:00:00]} b6 {[%emt 0:00:09]} 4. Bd3 {[%emt 0:00:00]} Bb7 {[%emt 0:00:18]} 5. Nbd2 {[%emt 0:00:05]} d5 {[%emt 0:01:15]} 6. b3 {[%emt 0:02:21]} Nbd7 {[%emt 0:01:09]} 7. Bb2 {[%emt 0:00:21]} Be7 {[%emt 0:01:59]} 8. O-O {[%emt 0:00:32]} O-O {[%emt 0:01:34]} 9. c4 {[%emt 0:03:07]} c5 {[%emt 0:04:12]} 10. Re1 {[%emt 0:04:35]} cxd4 {[%emt 0:08:13]} 11. exd4 {[%emt 0:00:07]} Rc8 {[%emt 0:02:46]} 12. Rc1 {[%emt 0:02:06]} dxc4 {[%emt 0:06:52]} 13. bxc4 {[%emt 0:00:27]} Rc7 {[%emt 0:11:31]} 14. Ne5 {[%emt 0:06:12]} Nxe5 {[%emt 0:01:43]} 15. Rxe5 {[%emt 0:01:43]} Bd6 {[%emt 0:03:32]} 16. Re1 {[%emt 0:02:07]} Qd7 {[%emt 0:06:21]} 17. Ne4 {[%emt 0:24:35]} Nxe4 {[%emt 0:04:47]} 18. Bxe4 {[%emt 0:00:12]} Bxe4 {[%emt 0:02:35]} 19. Rxe4 {[%emt 0:00:04]} Be7 {[%emt 0:07:45]} 20. Qd3 {[%emt 0:21:55]} Bf6 {[%emt 0:06:32]} 21. Rc3 {[%emt 0:15:14]} Rfc8 {[%emt 0:05:53]} 22. Bc1 {[%emt 0:06:17]} Qa4 {[%emt 0:04:54]} 23. Re2 {[%emt 0:04:59]} Rxc4 {[%emt 0:05:24]} 24. Rxc4 {[%emt 0:02:09]} Qxc4 {[%emt 0:00:14]} 25. Qxc4 {[%emt 0:01:29]} Rxc4 {[%emt 0:00:05]} 26. Be3 {[%emt 0:00:20]} Bxd4 {[%emt 0:00:56]} 27. Bxd4 {[%emt 0:00:31]} Rc1+ {[%emt 0:00:48]} 0-1

[Event "47th GRE-chT 2019"]
[Site "Patra"]
[Date "2019.07.03"]
[Round "2.30"]
[White "Christodoulakis, Michail"]
[Black "Peikos, Rafail"]
[Result "1/2-1/2"]
[ECO "B01"]
[WhiteElo "1224"]
[BlackElo "1309"]
[Annotator "NA"]
[PlyCount "78"]
[EventDate "2019.07.02"]
[EventCountry "GRE"]
[SourceTitle "playchess.com"]
[Source "ChessBase"]
[SourceQuality "1"]
[TimeControl "5400+30"]

1. e4 {[%emt 0:00:00]} d5 {[%emt 0:00:00]} 2. exd5 {[%emt 0:00:00]} Qxd5 {[%emt 0:00:00]} 3. Nc3 {[%emt 0:00:00]} Qd6 {[%emt 0:01:05]} 4. d4 {[%emt 0:00:47]} Nf6 {[%emt 0:05:36]} 5. Bc4 {[%emt 0:02:30]} a6 {[%emt 0:02:34]} 6. Nf3 {[%emt 0:00:51]} b5 {[%emt 0:07:17]} 7. Bb3 {[%emt 0:02:01]} Bb7 {[%emt 0:05:50]} 8. Be3 {[%emt 0:02:21]} e6 {[%emt 0:06:31]} 9. O-O {[%emt 0:02:36]} Be7 {[%emt 0:09:40]} 10. Re1 {[%emt 0:02:27]} O-O {[%emt 0:16:20]} 11. Ne5 {[%emt 0:09:45]} Qd8 {[%emt 0:05:48]} 12. Qe2 {[%emt 0:02:57]} Nbd7 {[%emt 0:02:29]} 13. Rad1 {[%emt 0:02:21]} Nb6 {[%emt 0:12:22]} 14. f3 {[%emt 0:05:50]} Nbd5 {[%emt 0:04:07]} 15. Ne4 {[%emt 0:06:39]} c6 {[%emt 0:01:54]} 16. Bg5 {[%emt 0:04:56]} Qc7 {[%emt 0:00:31]} 17. Bxf6 {[%emt 0:01:03]} Nxf6 {[%emt 0:00:54]} 18. c3 {[%emt 0:06:22]} c5 {[%emt 0:04:14]} 19. Nxf6+ {[%emt 0:02:46]} Bxf6 {[%emt 0:02:34]} 20. Kh1 {[%emt 0:05:01]} cxd4 {[%emt 0:00:43]} 21. cxd4 {[%emt 0:01:37]} Qd6 {[%emt 0:00:47]} 22. Qe3 {[%emt 0:01:52]} Rad8 {[%emt 0:02:20]} 23. Rd3 {[%emt 0:01:32]} Bd5 {[%emt 0:02:22]} 24. Bxd5 {[%emt 0:00:34]} Qxd5 {[%emt 0:00:41]} 25. b3 {[%emt 0:01:07]} Bxe5 {[%emt 0:00:08]} 26. Qxe5 {[%emt 0:00:12]} Qxe5 {[%emt 0:00:01]} 27. Rxe5 {[%emt 0:01:39]} Rd6 {[%emt 0:00:55]} 28. g4 {[%emt 0:00:18]} Rfd8 {[%emt 0:01:02]} 29. Re4 {[%emt 0:00:26]} Rd5 {[%emt 0:02:22]} 30. h4 {[%emt 0:02:04]} e5 {[%emt 0:00:35]} 31. Rde3 {[%emt 0:01:53]} Rxd4 {[%emt 0:00:04]} 32. Rxe5 {[%emt 0:00:56]} Rd1+ {[%emt 0:00:18]} 33. Re1 {[%emt 0:00:48]} Rxe1+ {[%emt 0:00:05]} 34. Rxe1 {[%emt 0:00:23]} g6 {[%emt 0:00:13]} 35. Re2 {[%emt 0:00:15]} Rd3 {[%emt 0:00:07]} 36. Kg2 {[%emt 0:00:55]} Kg7 {[%emt 0:00:27]} 37. g5 {[%emt 0:00:30]} h6 {[%emt 0:01:17]} 38. Kg3 {[%emt 0:01:28]} hxg5 {[%emt 0:00:14]} 39. hxg5 {[%emt 0:01:14]} Kf8 {[%emt 0:00:35]} 1/2-1/2

[Event "47th GRE-chT 2019"]
[Site "Patra"]
[Date "2019.07.03"]
[Round "2.32"]
[White "Safarli, Eltaj"]
[Black "Tzermiadianos, Andreas"]
[Result "1-0"]
[ECO "B23"]
[WhiteElo "2608"]
[BlackElo "2438"]
[Annotator "RC"]
[PlyCount "80"]
[EventDate "2019.07.02"]
[EventCountry "GRE"]
[SourceTitle "playchess.com"]
[Source "ChessBase"]
[SourceQuality "1"]
[TimeControl "5400+30"]

1. e4 {[%emt 0:00:00]} c5 {[%emt 0:00:53]} 2. Nc3 {[%emt 0:00:20]} Nc6 {[%emt 0:00:03]} 3. Bb5 {[%emt 0:01:12]} Nd4 {[%emt 0:00:16]} 4. Nf3 {[%emt 0:02:03]} a6 {[%emt 0:02:04]} 5. Bd3 {[%emt 0:00:33]} g6 {[%emt 0:00:35]} 6. Rb1 {[%emt 0:08:25]} Bg7 {[%emt 0:00:09]} 7. b4 {[%emt 0:03:40]} cxb4 {[%emt 0:00:08]} 8. Rxb4 {[%emt 0:00:06]} Nc6 {[%emt 0:00:04]} 9. Rb1 {[%emt 0:00:38]} Nf6 {[%emt 0:01:24]} 10. O-O {[%emt 0:06:10]} O-O {[%emt 0:00:34]} 11. Nd5 {[%emt 0:09:15]} Nxd5 {[%emt 0:00:07]} 12. exd5 {[%emt 0:00:12]} Ne5 {[%emt 0:09:30]} 13. Nxe5 {[%emt 0:00:10]} Bxe5 {[%emt 0:02:09]} 14. Re1 {[%emt 0:11:25]} d6 {[%emt 0:03:37]} 15. Bb2 {[%emt 0:14:23]} Bxb2 {[%emt 0:00:03]} 16. Rxb2 {[%emt 0:11:02]} e6 {[%emt 0:00:52]} 17. dxe6 {[%emt 0:00:09]} Bxe6 {[%emt 0:01:17]} 18. Rxb7 {[%emt 0:00:11]} Qa5 {[%emt 0:13:18]} 19. h4 {[%emt 0:04:02]} Qxa2 {[%emt 0:07:34]} 20. Rb6 {[%emt 0:11:55]} a5 {[%emt 0:04:08]} 21. Rxd6 {[%emt 0:03:34]} Rfd8 {[%emt 0:08:27]} 22. Qf3 {[%emt 0:07:03]} Qa3 23. Rxd8+ {[%emt 2:35:07]} Rxd8 {[%emt 0:02:37]} 24. Qf6 {[%emt 0:00:00]} Qd6 {[%emt 0:00:11]} 25. h5 {[%emt 0:00:00]} Qd4 {[%emt 0:06:09]} 26. Qe7 {[%emt 0:00:00]} Qd6 {[%emt 0:00:33]} 27. Qg5 {[%emt 0:00:00]} Bd5 {[%emt 0:08:11]} 28. Qh4 {[%emt 0:00:00]} Bc6 {[%emt 0:10:10]} 29. Re3 {[%emt 0:00:00]} Re8 {[%emt 0:09:18]} 30. hxg6 {[%emt 0:00:00]} fxg6 {[%emt 0:02:34]} 31. Qc4+ {[%emt 0:00:00]} Kf8 {[%emt 0:03:20]} 32. Qc3 {[%emt 0:00:00]} Rxe3 {[%emt 0:02:05]} 33. fxe3 {[%emt 0:00:00]} a4 {[%emt 0:00:09]} 34. Qh8+ {[%emt 0:00:00]} Ke7 {[%emt 0:00:06]} 35. Qxh7+ {[%emt 0:00:00]} Kd8 {[%emt 0:02:20]} 36. Qh8+ {[%emt 0:00:00]} Be8 {[%emt 0:00:58]} 37. Bb5 {[%emt 0:00:00]} Qxd2 {[%emt 0:00:14]} 38. Qxe8+ {[%emt 0:00:00]} Kc7 {[%emt 0:00:55]} 39. Qc6+ {[%emt 0:00:00]} Kd8 {[%emt 0:00:00]} 40. Qf6+ {[%emt 0:00:00]} Kc7 {[%emt 0:00:00]} 1-0

[Event "47th GRE-chT 2019"]
[Site "Patra"]
[Date "2019.07.03"]
[Round "2.34"]
[White "Goumas, Georgios"]
[Black "Azis, Azizis Ektoras"]
[Result "1-0"]
[ECO "C42"]
[WhiteElo "2391"]
[BlackElo "2191"]
[Annotator "NA"]
[PlyCount "107"]
[EventDate "2019.07.02"]
[EventCountry "GRE"]
[SourceTitle "playchess.com"]
[Source "ChessBase"]
[SourceQuality "1"]
[TimeControl "5400+30"]

1. e4 {[%emt 0:00:00]} e5 {[%emt 0:02:56]} 2. Nf3 {[%emt 0:00:00]} Nf6 {[%emt 0:00:04]} 3. Nxe5 {[%emt 0:00:00]} d6 {[%emt 0:00:03]} 4. Nf3 {[%emt 0:00:04]} Nxe4 {[%emt 0:00:04]} 5. Nc3 {[%emt 0:00:17]} Nxc3 {[%emt 0:00:05]} 6. dxc3 {[%emt 0:00:07]} Be7 {[%emt 0:00:04]} 7. Be3 {[%emt 0:05:41]} Nc6 {[%emt 0:00:57]} 8. Qd2 {[%emt 0:00:35]} Be6 {[%emt 0:00:08]} 9. O-O-O {[%emt 0:01:02] C42: Petroff Defence: 3 Nxe5 and unusual White 3rd moves} Qd7 {[%emt 0:00:06]} 10. Kb1 {[%emt 0:08:58]} a6 {[%emt 0:01:44]} 11. Ng5 {[%emt 0:04:42]} Bxg5 {[%emt 0:00:09]} 12. Bxg5 {[%emt 0:00:44]} f6 {[%emt 0:00:06]} 13. Be3 {[%emt 0:09:32]} O-O-O {[%emt 0:01:35]} 14. b3 {[%emt 0:02:18] [#]} h5 $146 {[%emt 0:00:11]} ({Predecessor:} 14... Kb8 15. h3 Bf5 16. Be2 Be4 {½-½ (31) Inarkiev,E (2669)-Gashimov,V (2703) Elista 2008}) 15. h4 {[%emt 0:00:58]} Ne5 {[%emt 0:00:44]} 16. f3 {[%emt 0:00:37]} c5 {[%emt 0:00:31]} 17. c4 {[%emt 0:02:39]} Qc6 {[%emt 0:05:46]} 18. Be2 {[%emt 0:07:18]} Bf5 {[%emt 0:01:50]} 19. Rhe1 {[%emt 0:01:09]} Rhe8 {[%emt 0:00:20]} 20. Bg1 {[%emt 0:10:39]} Bg6 {[%emt 0:04:26]} 21. Bh2 {[%emt 0:13:28]} Bh7 {[%emt 0:05:43]} 22. Qf4 {[%emt 0:12:01]} Qd7 $14 {[%emt 0:01:33]} 23. Rd2 {[%emt 0:11:21]} Qf5 {[%emt 0:00:34]} 24. Qg3 {[%emt 0:01:54]} Qg6 {[%emt 0:00:36]} 25. Qf2 {[%emt 0:03:45]} Qf5 {[%emt 0:00:28]} 26. Red1 {[%emt 0:02:05]} Ng4 {[%emt 0:02:19]} 27. Qg3 {[%emt 0:00:45]} Nxh2 {[%emt 0:00:06]} 28. Bd3 {[%emt 0:00:28]} Qe5 {[%emt 0:10:03]} 29. Qxe5 {[%emt 0:00:03]} dxe5 {[%emt 0:00:07]} 30. Bxh7 {[%emt 0:00:52]} Rxd2 {[%emt 0:00:05]} 31. Rxd2 {[%emt 0:00:45]} Rd8 {[%emt 0:06:37]} 32. Rf2 {[%emt 0:00:06]} Rd1+ {[%emt 0:00:03]} 33. Kb2 {[%emt 0:00:27]} Nf1 {[%emt 0:00:00]} 34. g4 {[%emt 0:00:52]} hxg4 {[%emt 0:00:02]} 35. fxg4 {[%emt 0:00:32]} Ne3 {[%emt 0:00:00]} 36. Re2 {[%emt 0:00:23]} Nf1 {[%emt 0:00:01]} 37. g5 {[%emt 0:00:36]} Kd8 {[%emt 0:04:58]} 38. Bd3 {[%emt 0:00:38]} Ke7 {[%emt 0:00:12]} 39. gxf6+ {[%emt 0:00:05]} gxf6 {[%emt 0:00:00]} 40. h5 {[%emt 0:00:00]} Ng3 {[%emt 0:00:00]} 41. Rh2 {[%emt 0:00:00]} Rh1 {[%emt 0:00:00]} 42. Rxh1 {[%emt 0:00:00]} Nxh1 {[%emt 0:00:00]} 43. h6 {[%emt 0:00:00]} Kf7 {[%emt 0:00:00]} 44. Be4 {[%emt 0:00:00]} Ng3 {[%emt 0:00:00]} 45. Bxb7 {[%emt 0:00:00]} a5 {[%emt 0:00:00]} 46. c3 {[%emt 0:00:00]} f5 {[%emt 0:00:00]} 47. b4 {[%emt 0:02:18]} axb4 {[%emt 0:00:00]} 48. cxb4 {[%emt 0:01:08]} e4 {[%emt 0:00:00]} 49. b5 {[%emt 0:00:29]} f4 {[%emt 0:00:00]} 50. h7 {[%emt 0:00:11]} Kg7 {[%emt 0:00:00]} 51. b6 {[%emt 0:01:17]} f3 {[%emt 0:00:00]} 52. Bxe4 {[%emt 0:00:17]} Nxe4 {[%emt 0:00:00]} 53. b7 {[%emt 0:00:21]} f2 {[%emt 0:00:00]} 54. b8=Q {[%emt 0:00:36]} 1-0

[Event "47th GRE-chT 2019"]
[Site "Patra"]
[Date "2019.07.03"]
[Round "2.35"]
[White "Radeva, Viktoria"]
[Black "Botsari, Anna-Maria"]
[Result "1/2-1/2"]
[ECO "B49"]
[WhiteElo "2247"]
[BlackElo "2233"]
[Annotator "NA"]
[PlyCount "63"]
[EventDate "2019.07.02"]
[EventCountry "GRE"]
[SourceTitle "playchess.com"]
[Source "ChessBase"]
[SourceQuality "1"]
[TimeControl "5400+30"]

1. e4 {[%emt 0:00:00]} c5 {[%emt 0:00:00]} 2. Nf3 {[%emt 0:00:00]} e6 {[%emt 0:00:27]} 3. d4 {[%emt 0:00:00]} cxd4 {[%emt 0:00:04]} 4. Nxd4 {[%emt 0:00:00]} Nc6 {[%emt 0:00:15]} 5. Be2 {[%emt 0:00:38]} Qc7 {[%emt 0:00:51]} 6. Nc3 {[%emt 0:00:19]} a6 {[%emt 0:00:02]} 7. O-O {[%emt 0:00:50]} Nf6 {[%emt 0:00:17]} 8. Be3 {[%emt 0:00:08]} Bb4 {[%emt 0:00:06]} 9. Na4 {[%emt 0:00:17]} O-O {[%emt 0:01:55]} 10. c4 {[%emt 0:00:24]} Bd6 {[%emt 0:00:08]} 11. g3 {[%emt 0:00:18]} Nxe4 {[%emt 0:00:31]} 12. c5 {[%emt 0:02:20]} Be7 {[%emt 0:04:03]} 13. Nxc6 {[%emt 0:38:40]} bxc6 {[%emt 0:13:27]} 14. Qd4 {[%emt 0:09:34]} d5 {[%emt 0:09:57]} 15. cxd6 $1 {[%emt 0:01:36]} Nxd6 {[%emt 0:01:03]} 16. Qb6 {[%emt 0:11:41]} Qxb6 $11 {[%emt 0:10:03]} 17. Nxb6 {[%emt 0:00:16]} Rb8 {[%emt 0:00:03]} 18. Rac1 {[%emt 0:04:54]} Nf5 {[%emt 0:05:04]} 19. Nxc8 {[%emt 0:01:29]} Rfxc8 {[%emt 0:02:35]} 20. Bxa6 {[%emt 0:01:08]} Nxe3 {[%emt 0:00:34]} 21. fxe3 {[%emt 0:00:05]} Rc7 {[%emt 0:06:19]} 22. Rc2 {[%emt 0:01:47]} Bf6 {[%emt 0:03:12]} 23. b3 {[%emt 0:02:12]} Ra7 {[%emt 0:02:24]} 24. Rxc6 {[%emt 0:08:28]} Rba8 {[%emt 0:00:33]} 25. Rfc1 {[%emt 0:00:56]} Bd8 {[%emt 0:02:40]} 26. Bc8 {[%emt 0:06:21]} Rxa2 {[%emt 0:02:19]} 27. Bb7 {[%emt 0:00:07]} Rb8 {[%emt 0:01:42]} 28. Rc8 {[%emt 0:01:19]} Rxc8 {[%emt 0:00:33]} 29. Rxc8 {[%emt 0:00:05]} Rd2 {[%emt 0:00:04]} 30. Kf1 {[%emt 0:00:44]} Kf8 {[%emt 0:00:15]} 31. Ke1 {[%emt 0:00:14]} Rd6 {[%emt 0:00:06]} 32. Ke2 {[%emt 0:02:52]} 1/2-1/2

[Event "47th GRE-chT 2019"]
[Site "Patra"]
[Date "2019.07.03"]
[Round "2.36"]
[White "Avramidou, Anastasia"]
[Black "Grafakou, Sotiria-Aphrodite"]
[Result "1/2-1/2"]
[ECO "E21"]
[WhiteElo "2260"]
[BlackElo "1684"]
[Annotator "NA"]
[PlyCount "101"]
[EventDate "2019.07.02"]
[EventCountry "GRE"]
[SourceTitle "playchess.com"]
[Source "ChessBase"]
[SourceQuality "1"]
[TimeControl "5400+30"]

1. d4 {[%emt 0:00:00]} Nf6 {[%emt 0:00:00]} 2. c4 {[%emt 0:00:00]} e6 {[%emt 0:00:00]} 3. Nf3 {[%emt 0:01:37]} d5 {[%emt 0:00:06]} 4. Nc3 {[%emt 0:01:46]} Bb4 {[%emt 0:00:30]} 5. g3 {[%emt 0:00:53]} O-O {[%emt 0:00:15]} 6. Bg2 {[%emt 0:03:01]} b6 {[%emt 0:02:02]} 7. O-O {[%emt 0:02:41]} Bb7 {[%emt 0:04:38]} 8. Ne5 {[%emt 0:08:35]} Nbd7 {[%emt 0:03:02]} 9. Bg5 {[%emt 0:13:43]} Qc8 {[%emt 0:25:38]} 10. cxd5 {[%emt 0:11:15]} Nxd5 {[%emt 0:01:57]} 11. Nxd5 {[%emt 0:05:22]} Bxd5 {[%emt 0:18:11]} 12. Bxd5 $14 {[%emt 0:00:16]} exd5 {[%emt 0:00:11]} 13. Nc6 {[%emt 0:02:47]} Bd6 {[%emt 0:11:19]} 14. Qb3 {[%emt 0:14:11]} Qe8 {[%emt 0:05:56]} 15. Qxd5 Qe7 {[%emt 2:26:26]} 16. e4 {[%emt 0:05:37]} Qxe4 17. Qf5 {[%emt 0:05:00]} Qe6 {[%emt 0:00:00]} 18. Qxe6 {[%emt 0:00:09]} fxe6 {[%emt 0:00:00]} 19. Rfe1 {[%emt 0:02:03]} Kf7 {[%emt 0:00:00]} 20. Rac1 {[%emt 0:04:32]} Rfe8 {[%emt 0:00:00]} 21. Bf4 {[%emt 0:04:01]} Bxf4 {[%emt 0:00:00]} 22. gxf4 {[%emt 0:01:29]} Kg8 {[%emt 0:00:00]} 23. f5 {[%emt 0:03:32]} exf5 {[%emt 0:00:00]} 24. Ne7+ {[%emt 0:00:27]} Kf8 {[%emt 0:00:00]} 25. Nxf5 {[%emt 0:00:24]} Rxe1+ {[%emt 0:00:00]} 26. Rxe1 {[%emt 0:02:38]} g6 {[%emt 0:00:00]} 27. Ne3 {[%emt 0:01:02]} Nf6 {[%emt 0:00:00]} 28. Rc1 {[%emt 0:01:09]} Rc8 {[%emt 0:00:00]} 29. Rc6 {[%emt 0:00:38]} Ke7 {[%emt 0:00:00]} 30. d5 {[%emt 0:01:32]} Ne8 {[%emt 0:00:00]} 31. Kg2 {[%emt 0:00:31]} Nd6 {[%emt 0:00:00]} 32. Ng4 {[%emt 0:01:53]} Nf5 {[%emt 0:00:00]} 33. Re6+ {[%emt 0:00:33]} Kf7 {[%emt 0:00:00]} 34. Ne5+ {[%emt 0:00:10]} Kg7 {[%emt 0:00:00]} 35. Nc6 {[%emt 0:01:49]} a5 {[%emt 0:00:00]} 36. Re2 {[%emt 0:01:07]} Rf8 {[%emt 0:00:00]} 37. Rc2 {[%emt 0:00:50]} Rf7 {[%emt 0:00:00]} 38. Nd8 {[%emt 0:00:29]} Rd7 {[%emt 0:00:00]} 39. Rxc7 {[%emt 0:00:14]} Rxc7 {[%emt 0:00:00]} 40. Ne6+ {[%emt 0:00:30]} Kf6 {[%emt 0:00:00]} 41. Nxc7 {[%emt 0:00:00]} Ke5 {[%emt 0:00:00]} 42. Kf3 {[%emt 0:00:00]} Ne7 {[%emt 0:00:00]} 43. Kg4 {[%emt 0:00:00]} h6 {[%emt 0:00:00]} 44. f4+ {[%emt 0:00:00]} Kd6 {[%emt 0:00:00]} 45. Nb5+ {[%emt 0:00:00]} Kxd5 {[%emt 0:00:00]} 46. Nc3+ {[%emt 0:00:00]} Kd4 {[%emt 0:00:00]} 47. h4 {[%emt 0:00:00]} Kd3 {[%emt 0:00:00]} 48. h5 {[%emt 0:00:00]} gxh5+ {[%emt 0:00:00]} 49. Kxh5 {[%emt 0:00:00]} Ke3 {[%emt 0:00:00]} 50. f5 {[%emt 0:00:00]} Nxf5 {[%emt 0:00:00]} 51. Nd5+ {[%emt 0:00:00]} 1/2-1/2